[Event "Polofinale MCR juniorek 2023"]
[Site "Czech Republic"]
[Date "2023.11.11"]
[Round "1.1"]
[White "Stastna, Martina"]
[Black "Petirova, Iva"]
[Result "1-0"]
[TimeControl "90 min per 40 moves + 15 min + 30 sec / move from move 1"]
[WhiteFideId "385123"]
[BlackFideId "23741961"]
[WhiteElo "1940"]
[BlackElo "1636"]

1. e4 {[%clk 01:30:53]} {[%emt 00:00:07]} c5 {[%clk 01:30:47]} {[%emt
00:00:13]} 2. Nf3 {[%clk 01:31:10]} {[%emt 00:00:12]} d6 {[%clk 01:31:03]}
{[%emt 00:00:14]} 3. Bb5+ {[%clk 01:30:55]} {[%emt 00:00:46]} Bd7 {[%clk
01:31:21]} {[%emt 00:00:12]} 4. Bxd7+ {[%clk 01:31:14]} {[%emt 00:00:11]} Qxd7
{[%clk 01:31:45]} {[%emt 00:00:07]} 5. O-O {[%clk 01:31:08]} {[%emt 00:00:35]}
e6 {[%clk 01:30:16]} {[%emt 00:02:00]} 6. d3 {[%clk 01:28:31]} {[%emt
00:03:07]} Be7 {[%clk 01:29:39]} {[%emt 00:01:07]} 7. e5 {[%clk 01:25:45]}
{[%emt 00:03:16]} d5 {[%clk 01:26:53]} {[%emt 00:03:16]} 8. Nc3 {[%clk
01:20:53]} {[%emt 00:05:21]} Nh6 {[%clk 01:22:46]} {[%emt 00:04:37]} 9. Ne2
{[%clk 01:15:20]} {[%emt 00:06:03]} Nc6 {[%clk 01:18:29]} {[%emt 00:04:48]} 10.
Ng3 {[%clk 01:12:31]} {[%emt 00:03:18]} Nf5 {[%clk 01:10:25]} {[%emt 00:08:34]}
11. c4 {[%clk 01:06:48]} {[%emt 00:06:14]} Nfd4 {[%clk 01:05:04]} {[%emt
00:05:51]} 12. Nxd4 {[%clk 01:02:16]} {[%emt 00:05:01]} Nxd4 {[%clk 01:00:29]}
{[%emt 00:05:06]} 13. Re1 {[%clk 00:56:00]} {[%emt 00:06:46]} O-O {[%clk
00:55:21]} {[%emt 00:05:39]} 14. b3 {[%clk 00:51:19]} {[%emt 00:05:10]} f6
{[%clk 00:49:16]} {[%emt 00:06:35]} 15. Bb2 {[%clk 00:50:19]} {[%emt 00:01:30]}
fxe5 {[%clk 00:47:36]} {[%emt 00:02:11]} 16. Rxe5 {[%clk 00:49:05]} {[%emt
00:01:44]} Bf6 {[%clk 00:45:46]} {[%emt 00:02:20]} 17. Bxd4 {[%clk 00:46:48]}
{[%emt 00:02:47]} cxd4 {[%clk 00:45:30]} {[%emt 00:00:47]} 18. Re1 {[%clk
00:46:01]} {[%emt 00:01:17]} Bd8 {[%clk 00:39:38]} {[%emt 00:06:22]} 19. Qg4
{[%clk 00:43:18]} {[%emt 00:03:12]} dxc4 {[%clk 00:35:38]} {[%emt 00:04:31]} 20.
bxc4 {[%clk 00:38:35]} {[%emt 00:05:14]} Rf6 {[%clk 00:35:07]} {[%emt
00:01:01]} 21. Re4 {[%clk 00:34:33]} {[%emt 00:04:31]} Qf7 {[%clk 00:30:58]}
{[%emt 00:04:39]} 22. Rf1 {[%clk 00:31:55]} {[%emt 00:03:07]} Bc7 {[%clk
00:28:59]} {[%emt 00:02:30]} 23. Ne2 {[%clk 00:19:07]} {[%emt 00:13:19]} e5
{[%clk 00:27:37]} {[%emt 00:01:52]} 24. Ng3 {[%clk 00:19:31]} {[%emt 00:00:06]}
Rf8 {[%clk 00:27:19]} {[%emt 00:00:48]} 25. Qe2 {[%clk 00:18:14]} {[%emt
00:01:46]} Qd7 {[%clk 00:18:38]} {[%emt 00:09:11]} 26. Rh4 {[%clk 00:15:30]}
{[%emt 00:03:14]} Rf4 {[%clk 00:17:17]} {[%emt 00:01:52]} 27. Rxf4 {[%clk
00:14:32]} {[%emt 00:01:28]} Rxf4 {[%clk 00:16:36]} {[%emt 00:01:10]} 28. Rb1
{[%clk 00:14:10]} {[%emt 00:00:51]} Qc6 {[%clk 00:13:57]} {[%emt 00:03:10]} 29.
Ne4 {[%clk 00:13:08]} {[%emt 00:01:32]} b6 {[%clk 00:12:32]} {[%emt 00:01:55]}
30. Qh5 {[%clk 00:11:38]} {[%emt 00:02:00]} Qd7 {[%clk 00:10:13]} {[%emt
00:02:50]} 31. Rb5 {[%clk 00:10:52]} {[%emt 00:01:15]} Qf7 {[%clk 00:09:31]}
{[%emt 00:01:12]} 32. Qe2 {[%clk 00:09:47]} {[%emt 00:01:35]} a6 {[%clk
00:09:03]} {[%emt 00:00:58]} 33. Rd5 {[%clk 00:09:57]} {[%emt 00:00:20]} h5
{[%clk 00:07:46]} {[%emt 00:01:48]} 34. g3 {[%clk 00:07:30]} {[%emt 00:02:56]}
Qg6 {[%clk 00:06:28]} {[%emt 00:01:48]} 35. Rd7 {[%clk 00:06:00]} {[%emt
00:02:00]} Rf7 {[%clk 00:06:39]} {[%emt 00:00:19]} 36. Rxf7 {[%clk 00:06:09]}
{[%emt 00:00:22]} Qxf7 {[%clk 00:05:53]} {[%emt 00:01:16]} 37. Kg2 {[%clk
00:05:24]} {[%emt 00:01:14]} Qg6 {[%clk 00:05:42]} {[%emt 00:00:41]} 38. h3
{[%clk 00:04:43]} {[%emt 00:01:11]} b5 {[%clk 00:04:36]} {[%emt 00:01:37]} 39.
cxb5 {[%clk 00:04:04]} {[%emt 00:01:09]} axb5 {[%clk 00:04:59]} {[%emt
00:00:07]} 40. Qc2 {[%clk 00:04:20]} {[%emt 00:00:13]} Qb6 {[%clk 00:04:57]}
{[%emt 00:00:32]} 41. Qb3+ {[%clk 00:03:45]} {[%emt 00:01:04]} Kh8 {[%clk
00:04:15]} {[%emt 00:01:12]} 42. Qf7 {[%clk 00:03:02]} {[%emt 00:01:13]} Qc6
{[%clk 00:02:29]} {[%emt 00:02:17]} 43. Qxh5+ {[%clk 00:01:37]} {[%emt
00:01:54]} Kg8 {[%clk 00:02:50]} {[%emt 00:00:09]} 44. Qe2 {[%clk 00:00:45]}
{[%emt 00:01:22]} b4 {[%clk 00:01:39]} {[%emt 00:01:41]} 45. Qb2 {[%clk
00:15:35]} {[%emt 00:01:09]} Qb5 {[%clk 00:14:08]} {[%emt 00:03:32]} 46. Qb3+
{[%clk 00:14:38]} {[%emt 00:01:27]} Kh8 {[%clk 00:14:10]} {[%emt 00:00:28]} 47.
h4 {[%clk 00:13:58]} {[%emt 00:01:09]} Bd8 {[%clk 00:13:18]} {[%emt 00:01:22]}
48. Kh2 {[%clk 00:12:19]} {[%emt 00:02:09]} Be7 {[%clk 00:12:23]} {[%emt
00:01:25]} 49. a3 {[%clk 00:10:11]} {[%emt 00:02:38]} Kh7 {[%clk 00:09:09]}
{[%emt 00:03:44]} 50. axb4 {[%clk 00:05:47]} {[%emt 00:04:55]} Qxb4 {[%clk
00:08:09]} {[%emt 00:01:30]} 51. Ng5+ {[%clk 00:05:50]} {[%emt 00:00:27]} Kg6
{[%clk 00:06:35]} {[%emt 00:02:04]} 52. Qf7+ {[%clk 00:05:39]} {[%emt
00:00:40]} Kh6 {[%clk 00:07:00]} {[%emt 00:00:06]} 53. g4 {[%clk 00:05:58]}
{[%emt 00:00:11]} Bxg5 {[%clk 00:07:03]} {[%emt 00:00:27]} 54. Qh5# {[%clk
00:06:21]} {[%emt 00:00:06]} 1-0

[Event "Polofinale MCR juniorek 2023"]
[Site "Czech Republic"]
[Date "2023.11.11"]
[Round "1.2"]
[White "Brezikova, Beata"]
[Black "Nagyova, Daniela"]
[Result "0-1"]
[TimeControl "90 min per 40 moves + 15 min + 30 sec / move from move 1"]
[WhiteFideId "23727250"]
[BlackFideId "390070"]
[WhiteElo "1622"]
[BlackElo "1872"]

1. e4 {[%clk 01:30:58]} {[%emt 00:00:01]} e5 {[%clk 01:30:45]} {[%emt
00:00:15]} 2. Nf3 {[%clk 01:31:22]} {[%emt 00:00:06]} Nc6 {[%clk 01:31:00]}
{[%emt 00:00:16]} 3. Bc4 {[%clk 01:31:41]} {[%emt 00:00:12]} Nf6 {[%clk
01:31:00]} {[%emt 00:00:29]} 4. Ng5 {[%clk 01:31:23]} {[%emt 00:00:48]} d5
{[%clk 01:30:37]} {[%emt 00:00:53]} 5. exd5 {[%clk 01:31:34]} {[%emt 00:00:19]}
Na5 {[%clk 01:30:26]} {[%emt 00:00:41]} 6. Bb5+ {[%clk 01:31:37]} {[%emt
00:00:26]} Bd7 {[%clk 01:30:19]} {[%emt 00:00:37]} 7. Qe2 {[%clk 01:20:02]}
{[%emt 00:12:05]} Be7 {[%clk 01:29:46]} {[%emt 00:01:02]} 8. Nf3 {[%clk
01:15:04]} {[%emt 00:05:28]} e4 {[%clk 01:00:39]} {[%emt 00:29:37]} 9. Ne5
{[%clk 01:07:38]} {[%emt 00:07:56]} c6 {[%clk 00:58:20]} {[%emt 00:02:50]} 10.
dxc6 {[%clk 01:04:47]} {[%emt 00:03:20]} Nxc6 {[%clk 00:57:24]} {[%emt
00:01:26]} 11. Nxd7 {[%clk 01:00:32]} {[%emt 00:04:45]} Qxd7 {[%clk 00:56:21]}
{[%emt 00:01:34]} 12. Nc3 {[%clk 00:59:06]} {[%emt 00:01:55]} O-O {[%clk
00:47:31]} {[%emt 00:09:20]} 13. Nxe4 {[%clk 00:46:31]} {[%emt 00:13:05]} Qd5
{[%clk 00:40:49]} {[%emt 00:07:11]} 14. Bxc6 {[%clk 00:36:29]} {[%emt
00:10:32]} Qxc6 {[%clk 00:40:43]} {[%emt 00:00:38]} 15. d3 {[%clk 00:35:42]}
{[%emt 00:01:17]} Nd5 {[%clk 00:28:57]} {[%emt 00:12:16]} 16. O-O {[%clk
00:31:52]} {[%emt 00:04:18]} Rae8 {[%clk 00:26:21]} {[%emt 00:03:06]} 17. Qd2
{[%clk 00:27:05]} {[%emt 00:05:17]} f5 {[%clk 00:24:04]} {[%emt 00:02:47]} 18.
Ng3 {[%clk 00:22:56]} {[%emt 00:04:39]} f4 {[%clk 00:20:17]} {[%emt 00:04:18]}
19. Ne4 {[%clk 00:21:15]} {[%emt 00:02:11]} f3 {[%clk 00:16:53]} {[%emt
00:03:54]} 20. b3 {[%clk 00:13:35]} {[%emt 00:08:10]} Nf4 {[%clk 00:06:41]}
{[%emt 00:10:42]} 21. g3 {[%clk 00:10:36]} {[%emt 00:03:29]} Qe6 {[%clk
00:04:21]} {[%emt 00:02:50]} 22. Kh1 {[%clk 00:07:42]} {[%emt 00:03:24]} Qh3
{[%clk 00:02:59]} {[%emt 00:01:52]} 23. Rg1 {[%clk 00:07:02]} {[%emt 00:01:10]}
Ne2 {[%clk 00:02:39]} {[%emt 00:00:50]} 24. Bb2 {[%clk 00:06:34]} {[%emt
00:00:58]} Rf5 {[%clk 00:01:45]} {[%emt 00:01:24]} 25. g4 {[%clk 00:05:08]}
{[%emt 00:01:56]} Rff8 {[%clk 00:01:30]} {[%emt 00:00:45]} 26. Ng5 {[%clk
00:03:09]} {[%emt 00:02:29]} Bxg5 {[%clk 00:01:45]} {[%emt 00:00:16]} 27. Qxg5
{[%clk 00:03:30]} {[%emt 00:00:08]} Rf7 {[%clk 00:02:02]} {[%emt 00:00:14]} 28.
Rad1 {[%clk 00:00:45]} {[%emt 00:03:15]} Nxg1 {[%clk 00:01:52]} {[%emt
00:00:39]} 29. Rxg1 {[%clk 00:01:09]} {[%emt 00:00:06]} Re1 {[%clk 00:01:06]}
{[%emt 00:01:16]} 30. Qd8+ {[%clk 00:00:38]} {[%emt 00:01:01]} Rf8 {[%clk
00:01:34]} {[%emt 00:00:02]} 31. Qd5+ {[%clk 00:00:56]} {[%emt 00:00:11]} Kh8
{[%clk 00:01:45]} {[%emt 00:00:20]} 32. Bxg7+ {[%clk 00:00:32]} {[%emt
00:00:55]} Kxg7 {[%clk 00:02:13]} {[%emt 00:00:01]} 33. Qd4+ {[%clk 00:00:38]}
{[%emt 00:00:23]} Rf6 {[%clk 00:01:59]} {[%emt 00:00:45]} 34. Qd7+ {[%clk
00:00:34]} {[%emt 00:00:34]} Kg6 {[%clk 00:02:13]} {[%emt 00:00:15]} 0-1

[Event "Polofinale MCR juniorek 2023"]
[Site "Czech Republic"]
[Date "2023.11.11"]
[Round "1.3"]
[White "Buchtova, Viktorie"]
[Black "Nova, Anezka"]
[Result "1-0"]
[TimeControl "90 min per 40 moves + 15 min + 30 sec / move from move 1"]
[WhiteFideId "23714786"]
[BlackFideId "23727144"]
[WhiteElo "1801"]
[BlackElo "1578"]

1. e4 {[%clk 01:30:58]} {[%emt 00:00:01]} e6 {[%clk 01:30:55]} {[%emt
00:00:05]} 2. d4 {[%clk 01:31:24]} {[%emt 00:00:04]} d5 {[%clk 01:31:21]}
{[%emt 00:00:04]} 3. Nc3 {[%clk 01:31:50]} {[%emt 00:00:04]} Bb4 {[%clk
01:31:46]} {[%emt 00:00:05]} 4. e5 {[%clk 01:32:03]} {[%emt 00:00:16]} c5
{[%clk 01:32:08]} {[%emt 00:00:08]} 5. Bd2 {[%clk 01:31:20]} {[%emt 00:01:14]}
Ne7 {[%clk 01:32:26]} {[%emt 00:00:13]} 6. f4 {[%clk 01:30:33]} {[%emt
00:01:16]} O-O {[%clk 01:29:16]} {[%emt 00:03:40]} 7. Nf3 {[%clk 01:30:29]}
{[%emt 00:00:34]} Nbc6 {[%clk 01:26:03]} {[%emt 00:03:43]} 8. Nb5 {[%clk
01:28:09]} {[%emt 00:02:50]} Bxd2+ {[%clk 01:24:57]} {[%emt 00:01:36]} 9. Qxd2
{[%clk 01:28:33]} {[%emt 00:00:06]} a6 {[%clk 01:23:27]} {[%emt 00:02:00]} 10.
Nd6 {[%clk 01:28:49]} {[%emt 00:00:14]} cxd4 {[%clk 01:22:55]} {[%emt
00:01:02]} 11. Bd3 {[%clk 01:24:47]} {[%emt 00:04:31]} f6 {[%clk 01:18:29]}
{[%emt 00:04:56]} 12. O-O-O {[%clk 01:20:48]} {[%emt 00:04:29]} Bd7 {[%clk
01:05:09]} {[%emt 00:13:50]} 13. Rdf1 {[%clk 00:59:53]} {[%emt 00:21:25]} b5
{[%clk 00:56:15]} {[%emt 00:09:25]} 14. g4 {[%clk 00:54:33]} {[%emt 00:05:49]}
Nc8 {[%clk 00:49:19]} {[%emt 00:07:26]} 15. Nxc8 {[%clk 00:54:17]} {[%emt
00:00:46]} Rxc8 {[%clk 00:49:40]} {[%emt 00:00:10]} 16. h4 {[%clk 00:42:03]}
{[%emt 00:12:44]} b4 {[%clk 00:42:50]} {[%emt 00:07:20]} 17. Kb1 {[%clk
00:39:26]} {[%emt 00:03:07]} a5 {[%clk 00:39:36]} {[%emt 00:03:44]} 18. exf6
{[%clk 00:33:48]} {[%emt 00:06:08]} Rxf6 {[%clk 00:36:37]} {[%emt 00:03:29]} 19.
g5 {[%clk 00:32:35]} {[%emt 00:01:43]} Rf8 {[%clk 00:35:21]} {[%emt 00:01:45]}
20. Ba6 {[%clk 00:32:32]} {[%emt 00:00:33]} Rb8 {[%clk 00:29:59]} {[%emt
00:05:52]} 21. Nxd4 {[%clk 00:32:50]} {[%emt 00:00:12]} Nxd4 {[%clk 00:26:29]}
{[%emt 00:04:01]} 22. Qxd4 {[%clk 00:33:12]} {[%emt 00:00:07]} Qb6 {[%clk
00:26:49]} {[%emt 00:00:11]} 23. Qxb6 {[%clk 00:32:28]} {[%emt 00:01:14]} Rxb6
{[%clk 00:27:14]} {[%emt 00:00:05]} 24. Be2 {[%clk 00:32:13]} {[%emt 00:00:45]}
Bb5 {[%clk 00:25:21]} {[%emt 00:02:23]} 25. Rh2 {[%clk 00:32:44]} {[%emt
00:00:28]} Bxe2 {[%clk 00:24:33]} {[%emt 00:01:49]} 26. Rxe2 {[%clk 00:33:08]}
{[%emt 00:00:06]} Rf5 {[%clk 00:20:38]} {[%emt 00:04:25]} 27. Re5 {[%clk
00:27:50]} {[%emt 00:05:48]} Rxe5 {[%clk 00:14:42]} {[%emt 00:06:26]} 28. fxe5
{[%clk 00:28:06]} {[%emt 00:00:14]} Rc6 {[%clk 00:08:36]} {[%emt 00:06:36]} 29.
Rf4 {[%clk 00:25:06]} {[%emt 00:03:30]} Rc7 {[%clk 00:04:12]} {[%emt 00:04:55]}
30. h5 {[%clk 00:23:56]} {[%emt 00:01:40]} Rf7 {[%clk 00:03:08]} {[%emt
00:01:34]} 31. Rxf7 {[%clk 00:24:19]} {[%emt 00:00:07]} Kxf7 {[%clk 00:03:35]}
{[%emt 00:00:03]} 32. a3 {[%clk 00:04:12]} {[%emt 00:20:37]} b3 {[%clk
00:03:33]} {[%emt 00:00:32]} 33. cxb3 {[%clk 00:02:41]} {[%emt 00:02:01]} Ke7
{[%clk 00:03:51]} {[%emt 00:00:11]} 34. Kc2 {[%clk 00:01:44]} {[%emt 00:01:27]}
Kd7 {[%clk 00:04:14]} {[%emt 00:00:08]} 35. Kc3 {[%clk 00:02:09]} {[%emt
00:00:05]} Kc6 {[%clk 00:04:11]} {[%emt 00:00:32]} 36. b4 {[%clk 00:02:26]}
{[%emt 00:00:13]} a4 {[%clk 00:04:18]} {[%emt 00:00:24]} 37. b3 {[%clk
00:02:41]} {[%emt 00:00:15]} Kb5 {[%clk 00:04:04]} {[%emt 00:00:44]} 38. bxa4+
{[%clk 00:03:03]} {[%emt 00:00:07]} Kxa4 {[%clk 00:04:29]} {[%emt 00:00:05]} 39.
Kd3 {[%clk 00:02:13]} {[%emt 00:01:21]} Kb5 {[%clk 00:03:45]} {[%emt 00:01:15]}
40. Kd4 {[%clk 00:02:40]} {[%emt 00:00:03]} Kc6 {[%clk 00:02:21]} {[%emt
00:01:54]} 41. a4 {[%clk 00:02:57]} {[%emt 00:00:12]} Kb6 {[%clk 00:02:03]}
{[%emt 00:00:48]} 42. b5 {[%clk 00:03:04]} {[%emt 00:00:23]} Kc7 {[%clk
00:01:17]} {[%emt 00:01:16]} 43. Kc5 {[%clk 00:03:27]} {[%emt 00:00:06]} Kb7
{[%clk 00:01:35]} {[%emt 00:00:12]} 44. a5 {[%clk 00:03:48]} {[%emt 00:00:09]}
Kc7 {[%clk 00:01:45]} {[%emt 00:00:21]} 45. b6+ {[%clk 00:03:49]} {[%emt
00:00:29]} Kb7 {[%clk 00:01:15]} {[%emt 00:01:00]} 46. Kb5 {[%clk 00:04:15]}
{[%emt 00:00:04]} Kb8 {[%clk 00:00:44]} {[%emt 00:01:01]} 47. a6 {[%clk
00:04:09]} {[%emt 00:00:36]} Ka8 {[%clk 00:00:51]} {[%emt 00:00:22]} 48. b7+
{[%clk 00:03:58]} {[%emt 00:00:41]} 1-0

[Event "Polofinale MCR juniorek 2023"]
[Site "Czech Republic"]
[Date "2023.11.11"]
[Round "1.4"]
[White "Markina, Sofiia"]
[Black "Dudova, Pavlina"]
[Result "0-1"]
[TimeControl "90 min per 40 moves + 15 min + 30 sec / move from move 1"]
[WhiteFideId "23744014"]
[BlackFideId "394629"]
[WhiteElo "1563"]
[BlackElo "1763"]

1. e4 {[%clk 01:30:58]} {[%emt 00:00:02]} e6 {[%clk 01:30:53]} {[%emt
00:00:07]} 2. d4 {[%clk 01:31:18]} {[%emt 00:00:10]} d5 {[%clk 01:31:17]}
{[%emt 00:00:06]} 3. Nd2 {[%clk 01:31:40]} {[%emt 00:00:08]} Nf6 {[%clk
01:31:36]} {[%emt 00:00:10]} 4. e5 {[%clk 01:31:51]} {[%emt 00:00:19]} Nfd7
{[%clk 01:31:59]} {[%emt 00:00:07]} 5. Bd3 {[%clk 01:32:10]} {[%emt 00:00:11]}
c5 {[%clk 01:32:19]} {[%emt 00:00:10]} 6. c3 {[%clk 01:32:29]} {[%emt
00:00:12]} b6 {[%clk 01:32:03]} {[%emt 00:00:47]} 7. Ne2 {[%clk 01:31:53]}
{[%emt 00:01:05]} Ba6 {[%clk 01:32:16]} {[%emt 00:00:16]} 8. Bxa6 {[%clk
01:29:53]} {[%emt 00:02:31]} Nxa6 {[%clk 01:32:36]} {[%emt 00:00:10]} 9. O-O
{[%clk 01:27:35]} {[%emt 00:02:47]} Be7 {[%clk 01:31:56]} {[%emt 00:01:09]} 10.
Ng3 {[%clk 01:25:24]} {[%emt 00:02:43]} c4 {[%clk 01:27:23]} {[%emt 00:05:03]}
11. Qg4 {[%clk 01:18:18]} {[%emt 00:07:35]} g6 {[%clk 01:25:13]} {[%emt
00:02:41]} 12. f4 {[%clk 01:09:24]} {[%emt 00:09:24]} Nc7 {[%clk 01:24:29]}
{[%emt 00:01:14]} 13. Nf3 {[%clk 01:03:14]} {[%emt 00:06:41]} b5 {[%clk
01:20:45]} {[%emt 00:04:13]} 14. b3 {[%clk 00:59:46]} {[%emt 00:03:59]} Nb6
{[%clk 01:16:28]} {[%emt 00:04:47]} 15. Ne1 {[%clk 00:52:02]} {[%emt 00:08:15]}
a5 {[%clk 01:06:57]} {[%emt 00:10:01]} 16. bxc4 {[%clk 00:50:10]} {[%emt
00:02:23]} dxc4 {[%clk 01:04:22]} {[%emt 00:03:04]} 17. Rb1 {[%clk 00:48:49]}
{[%emt 00:01:51]} Na4 {[%clk 01:00:05]} {[%emt 00:04:45]} 18. Bd2 {[%clk
00:40:21]} {[%emt 00:08:59]} Rb8 {[%clk 00:56:19]} {[%emt 00:04:16]} 19. Qe2
{[%clk 00:37:29]} {[%emt 00:03:22]} Nd5 {[%clk 00:52:31]} {[%emt 00:04:17]} 20.
Rf3 {[%clk 00:34:51]} {[%emt 00:03:09]} Qc7 {[%clk 00:45:16]} {[%emt 00:07:45]}
21. Ne4 {[%clk 00:26:04]} {[%emt 00:09:17]} b4 {[%clk 00:35:34]} {[%emt
00:10:11]} 22. Nd6+ {[%clk 00:26:10]} {[%emt 00:00:25]} Bxd6 {[%clk 00:32:13]}
{[%emt 00:03:50]} 23. exd6 {[%clk 00:26:35]} {[%emt 00:00:06]} Qxd6 {[%clk
00:27:14]} {[%emt 00:05:29]} 24. Qxc4 {[%clk 00:25:18]} {[%emt 00:01:47]} Naxc3
{[%clk 00:23:23]} {[%emt 00:04:21]} 25. Bxc3 {[%clk 00:23:42]} {[%emt
00:02:06]} Nxc3 {[%clk 00:23:35]} {[%emt 00:00:18]} 26. Rxc3 {[%clk 00:23:28]}
{[%emt 00:00:44]} bxc3 {[%clk 00:23:43]} {[%emt 00:00:22]} 27. Rxb8+ {[%clk
00:23:46]} {[%emt 00:00:12]} Qxb8 {[%clk 00:23:19]} {[%emt 00:00:54]} 28. Qc6+
{[%clk 00:24:07]} {[%emt 00:00:09]} Ke7 {[%clk 00:22:36]} {[%emt 00:01:13]} 29.
Qc5+ {[%clk 00:24:12]} {[%emt 00:00:26]} Qd6 {[%clk 00:22:30]} {[%emt
00:00:26]} 30. Qxc3 {[%clk 00:24:08]} {[%emt 00:00:44]} Qxf4 {[%clk 00:21:29]}
{[%emt 00:01:31]} 31. d5 {[%clk 00:22:29]} {[%emt 00:02:09]} Rd8 {[%clk
00:21:21]} {[%emt 00:00:35]} 32. dxe6 {[%clk 00:22:07]} {[%emt 00:00:55]} fxe6
{[%clk 00:21:11]} {[%emt 00:00:39]} 33. Qc5+ {[%clk 00:21:55]} {[%emt
00:00:42]} Kf6 {[%clk 00:20:37]} {[%emt 00:01:02]} 34. Qxa5 {[%clk 00:20:38]}
{[%emt 00:01:50]} Qe3+ {[%clk 00:20:56]} {[%emt 00:00:10]} 35. Kf1 {[%clk
00:20:59]} {[%emt 00:00:09]} Rd2 {[%clk 00:21:02]} {[%emt 00:00:25]} 0-1

[Event "Polofinale MCR juniorek 2023"]
[Site "Czech Republic"]
[Date "2023.11.11"]
[Round "1.5"]
[White "Havelkova, Beata"]
[Black "Vavrinkova, Marie"]
[Result "1-0"]
[TimeControl "90 min per 40 moves + 15 min + 30 sec / move from move 1"]
[WhiteFideId "23709405"]
[BlackFideId "392154"]
[WhiteElo "1736"]
[BlackElo "1492"]

1. e4 {[%clk 01:30:58]} d6 {[%clk 01:30:46]} {[%emt 00:00:15]} 2. d4 {[%clk
01:31:21]} {[%emt 00:00:07]} Nf6 {[%clk 01:31:01]} {[%emt 00:00:16]} 3. Bd3
{[%clk 01:30:10]} {[%emt 00:01:41]} g6 {[%clk 01:30:28]} {[%emt 00:01:03]} 4.
Bg5 {[%clk 01:27:44]} {[%emt 00:02:55]} Bg7 {[%clk 01:27:01]} {[%emt 00:03:57]}
5. Nf3 {[%clk 01:26:43]} {[%emt 00:01:31]} O-O {[%clk 01:25:39]} {[%emt
00:01:52]} 6. c3 {[%clk 01:26:04]} {[%emt 00:01:09]} Bg4 {[%clk 01:23:52]}
{[%emt 00:02:17]} 7. h3 {[%clk 01:26:01]} {[%emt 00:00:33]} Bxf3 {[%clk
01:23:19]} {[%emt 00:01:03]} 8. Qxf3 {[%clk 01:24:20]} {[%emt 00:02:10]} Nbd7
{[%clk 01:19:21]} {[%emt 00:04:29]} 9. Nd2 {[%clk 01:22:34]} {[%emt 00:02:15]}
c5 {[%clk 01:05:21]} {[%emt 00:14:31]} 10. Qe3 {[%clk 01:21:54]} {[%emt
00:01:09]} Re8 {[%clk 00:59:53]} {[%emt 00:05:59]} 11. Bh6 {[%clk 01:16:13]}
{[%emt 00:06:11]} Bh8 {[%clk 00:56:49]} {[%emt 00:03:33]} 12. O-O {[%clk
01:12:48]} {[%emt 00:03:55]} Qc7 {[%clk 00:44:29]} {[%emt 00:12:51]} 13. f4
{[%clk 01:10:44]} {[%emt 00:02:33]} e6 {[%clk 00:40:47]} {[%emt 00:04:12]} 14.
g4 {[%clk 00:58:13]} {[%emt 00:13:01]} e5 {[%clk 00:35:56]} {[%emt 00:05:20]}
15. f5 {[%clk 00:57:00]} {[%emt 00:01:43]} cxd4 {[%clk 00:34:28]} {[%emt
00:01:58]} 16. Qg5 {[%clk 00:56:16]} {[%emt 00:01:13]} dxc3 {[%clk 00:31:00]}
{[%emt 00:03:59]} 17. fxg6 {[%clk 00:54:50]} {[%emt 00:01:56]} Qc5+ {[%clk
00:28:08]} {[%emt 00:03:23]} 18. Kh1 {[%clk 00:54:23]} {[%emt 00:00:57]} hxg6
{[%clk 00:26:36]} {[%emt 00:02:02]} 19. Rac1 {[%clk 00:47:44]} {[%emt
00:07:08]} Nh7 {[%clk 00:19:23]} {[%emt 00:07:43]} 20. Qh4 {[%clk 00:48:05]}
{[%emt 00:00:09]} Qd4 {[%clk 00:19:27]} {[%emt 00:00:26]} 21. Rxc3 {[%clk
00:43:37]} {[%emt 00:04:58]} d5 {[%clk 00:15:18]} {[%emt 00:04:39]} 22. Bb5
{[%clk 00:42:13]} {[%emt 00:01:53]} dxe4 {[%clk 00:09:35]} {[%emt 00:06:14]} 23.
Be3 {[%clk 00:40:07]} {[%emt 00:02:36]} Qd6 {[%clk 00:08:47]} {[%emt 00:01:18]}
24. Bc4 {[%clk 00:37:56]} {[%emt 00:02:40]} Re7 {[%clk 00:07:53]} {[%emt
00:01:24]} 25. Nxe4 {[%clk 00:37:57]} {[%emt 00:00:29]} Qb8 {[%clk 00:07:09]}
{[%emt 00:01:14]} 26. Qxe7 {[%clk 00:38:09]} {[%emt 00:00:18]} 1-0